{"text_format":"1","workbook":"xlsx","n_sheets":12,"sheets":["1. Forside","2. Samlet prisloft","3. Driftsomkostninger","4. Historiske investeringer","5. Gennemførte investeringer","6. Korrektion investeringer","7. Planlagte investeringer","8. 1-1 omkostninger","9. Miljø- og servicemål","10. Nettofinansielle poster","11. Over- eller underdækning","12. Kontrol med indtægtsrammen"],"not_rendered":{"charts":0,"images":0,"macros":1,"external_links":0,"defined_names":0,"comments":0,"pivot_tables":0},"unopened":[],"bounds":{"document_bytes":16777216,"sheet_cells":100000,"rows_first":2000,"rows_last":500,"rows_between":2000,"halvings":0,"cell_chars":16384,"cell_head_chars":4096},"cells_cut":0,"cells_raw":0,"read":"whole","date_system":"1900"}

{"sheet":"1. Forside","index":0,"n_rows":26,"n_cols":4,"rows_kept":26,"cut":false,"hidden":false,"merged":[[20,3,20,5],[19,3,19,5],[18,3,18,5],[7,3,7,5],[12,3,12,5],[15,3,15,5],[16,3,16,5],[17,3,17,5],[25,3,25,5],[24,3,24,5],[23,3,23,5],[22,3,22,5],[21,3,21,5]]}
["Lolland Vand A/S"]
[]
[]
[]
[]
[]
[]
[null,null,null,"Bilag A"]
[]
[]
[]
[]
[null,null,null,"Indholdsfortegnelse"]
[]
[]
[null,null,"Fane nr. 2","Samlet prisloft "]
[null,null,"Fane nr. 3","Driftsomkostninger"]
[null,null,"Fane nr. 4","Historiske investeringer "]
[null,null,"Fane nr. 5","Gennemførte investeringer"]
[null,null,"Fane nr. 6","Korrektion investeringer"]
[null,null,"Fane nr. 7","Planlagte investeringer"]
[null,null,"Fane nr. 8","1:1 omkostninger"]
[null,null,"Fane nr. 9","Miljø- og servicemål"]
[null,null,"Fane nr. 10","Nettofinansielle poster"]
[null,null,"Fane nr. 11","Over- eller underdækning"]
[null,null,"Fane nr. 12","Kontrol med indtægtsrammen og oversigt over ekstraordinære effektiviseringsgevinster"]

{"sheet":"2. Samlet prisloft","index":1,"n_rows":38,"n_cols":6,"rows_kept":38,"cut":false,"hidden":false,"merged":[[3,1,3,5]]}
[{"$f":"'1. Forside'!A1","v":"Lolland Vand A/S"}]
[]
[]
[null,"Fane 2. Samlet prisloft for 2015"]
[]
[null,"Driftsomkostninger"]
[null,"Driftsomkostninger i prisloftet for 2014",{"$f":"'3. Driftsomkostninger'!C20","v":16887220.664999999},"kr."]
[null,"Bortfald af væsentlige omkostninger",{"$f":"-'3. Driftsomkostninger'!C16","v":0},"kr."]
[null,"Korrektion for prisudviklingen 2014-2015",{"$f":"'3. Driftsomkostninger'!C22","v":13509.776532},"kr."]
[null,"Forhøjelse til effektivt niveau iht. benchmarkingen",{"$f":"'3. Driftsomkostninger'!C28","v":0},"kr."]
[null,"Korrektion for generelt effektiviseringskrav",{"$f":"-'3. Driftsomkostninger'!C34","v":-74303.770925999997},"kr."]
[null,"Korrektion for individuelt effektiviseringskrav",{"$f":"-'3. Driftsomkostninger'!C43","v":-844361.03324999998},"kr."]
[null,"Driftsomkostninger i alt",{"$f":"SUM(C7:C12)","v":15982065.637356002},"kr.",{"$f":"C13","v":15982065.637356002}," kr."]
[null,"Investeringer"]
[null,"Tillæg for historiske investeringer",{"$f":"'4. Historiske investeringer'!C9","v":13221420.617611324},"kr."]
[null,"Tillæg for gennemførte investeringer i 2011-2013",{"$f":"'5. Gennemførte investeringer'!F131","v":4453415.958333334},"kr."]
[null,"Korrektion af tillæg for planlagte investeringer vedrørende 2013  ",{"$f":"'6. Korrektion investeringer'!C10","v":296650.26333333389},"kr."]
[null,"Tillæg for planlagte investeringer i 2014 og 2015",{"$f":"'7. Planlagte investeringer'!F51","v":1333806.6666666667},"kr."]
[null,"Investeringstillæg i alt",{"$f":"SUM(C15:C18)","v":19305293.505944662},"kr.",{"$f":"C19","v":19305293.505944662}," kr."]
[null,"Øvrige omkostninger mv."]
[null,"Tillæg for 1:1 omkostninger i 2015",{"$f":"'8. 1-1 omkostninger'!C9","v":68000},"kr."]
[null,"Tillæg for afgift for ledningsført vand i 2015",{"$f":"'8. 1-1 omkostninger'!C14","v":10000000},"kr."]
[null,"Tillæg vedr. revisorerklæringer og DANVA/FVD-kontingent",{"$f":"'8. 1-1 omkostninger'!C20","v":103000},"kr."]
[null,"Korrektion ift. faktiske 1:1 omkostninger i 2013",{"$f":"'8. 1-1 omkostninger'!C26","v":-683407},"kr."]
[null,"Tillæg for driftsomkostninger til miljø- og servicemål i 2015",{"$f":"'9. Miljø- og servicemål'!C8","v":55000},"kr."]
[null,"Korrektion ift. faktiske driftsomkostninger til miljø- og servicemål i 2013",{"$f":"'9. Miljø- og servicemål'!C15","v":25991},"kr."]
[null,"Tillæg/fradrag for nettofinansielle poster i 2015",{"$f":"'10. Nettofinansielle poster'!C9","v":2895000},"kr."]
[null,"Korrektion ift. faktiske nettofinansielle poster i 2013",{"$f":"'10. Nettofinansielle poster'!C16","v":466127},"kr."]
[null,"Øvrige omkostninger mv. i alt",{"$f":"SUM(C21:C28)","v":12929711},"kr.",{"$f":"C29","v":12929711}," kr."]
[null,"Historisk over- eller underdækning"]
[null,"Tillæg/fradrag for over- eller underdækning til og med 2010",{"$f":"'11. Over- eller underdækning'!C11","v":302561.87566137564},"kr.",{"$f":"C31","v":302561.87566137564}," kr."]
[null,"Korrektion i forhold til tidligere indtægtsramme "]
[null,"Korrektion for overholdelse af indtægtsramme i prisloft 2013",{"$f":"'12. Kontrol med indtægtsrammen'!E27","v":5955031.0726462007},"kr.",{"$f":"C33","v":5955031.0726462007}," kr."]
[null,"Samlet prisloft"]
[null,"Indtægtsramme i 2015 ",null,null,{"$f":"SUM(E13:E33)","v":54474663.091608241}," kr."]
[null,"Debiteret vandmængde i 2013",null,null,1673529," m3"]
[null,"Prisloft 2015",null,null,{"$f":"E35/E36","v":32.550773300975507}," kr./m3"]
[null,"Prisloft 2015 ekskl. afgift for ledningsført vand ",null,null,{"$f":"(E35-C22)/E36","v":26.575376400174864}," kr./m3"]

{"sheet":"3. Driftsomkostninger","index":2,"n_rows":43,"n_cols":4,"rows_kept":43,"cut":false,"hidden":false,"merged":[[3,1,3,3]]}
[{"$f":"'1. Forside'!A1","v":"Lolland Vand A/S"}]
[]
[]
[null,"Fane 3. Driftsomkostninger "]
[]
[null,"Driftsomkostningerne i prisloftet for 2014"]
[null,"Korrigerede driftsomkostninger i prisloftet for 2013 (DOiPL 2013)",17499711,"kr."]
[null,"Prisfremskrivning 1,5 pct.",{"$f":"0.015*SUM(C7:C7)","v":262495.66499999998},"kr."]
[null,"Generelt effektiviseringskrav (0 pct.)",0,"kr."]
[null,"Individuelt effektiviseringskrav ",-874986,"kr."]
[null,"Driftsomkostningerne i prisloftet for 2014 (DOiPL 2014)",{"$f":"SUM(C7:C10)","v":16887220.664999999},"kr."]
[]
[]
[null,"Korrektion for forventet bortfald af væsentlige omkostninger"]
[null,"Selskabets indberettede bortfald af væsentlige omkostninger inden 2015",0,"kr."]
[null,"Korrektion for forventet bortfald ",{"$f":"SUM(C15:C15)","v":0},"kr."]
[]
[]
[null,"Korrektion for prisudviklingen fra 2014-2015"]
[null,"Driftsomkostningerne i prisloftet for 2014",{"$f":"C11-C16","v":16887220.664999999},"kr."]
[null,"Prisudvikling 2014 - 2015 ",0.08,"pct."]
[null,"Korrektion for prisudvikling",{"$f":"C20*(C21/100)","v":13509.776532},"kr."]
[]
[]
[null,"Eventuel forhøjelse til effektivt niveau iht. benchmarkingen"]
[null,"Selskabets effektive driftsomkostninger iht. benchmarkingen",8377750,"kr."]
[null,"Selskabets pristalskorrigerede driftsomkostninger i 2015-niveau",{"$f":"C20+C22","v":16900730.441532001},"kr."]
[null,"Eventuel forhøjelse til effektivt niveau",{"$f":"IF(C27>C26,0,C26-C27)","v":0},"kr."]
[]
[]
[null,"Korrektion for generelt effektiviseringskrav"]
[null,"Driftsomkostningerne i prisloftet for 2014",{"$f":"C20","v":16887220.664999999},"kr. "]
[null,"Generelt effektiviseringskrav ",0.44,"pct."]
[null,"Endeligt generelt effektiviseringskrav",{"$f":"C32*(C33/100)","v":74303.770925999997},"kr. "]
[]
[]
[null,"Korrektion for individuelt effektiviseringskrav"]
[null,"Rå effektiviseringspotentiale",8509471,"kr."]
[null,"Effektiviseringspotentiale efter eventuel korrektion for særlige forhold",8509471,"kr."]
[null,"Effektiviseringspotentiale efter forsigtighedshensyn",5881819,"kr."]
[null,"Effektiviseringspotentiale efter eventuel korrektion for sammensætning af signifikante costdrivere",5881819,"kr. "]
[null,"Umiddelbart effektiviseringskrav",{"$f":"C41/4","v":1470454.75},"kr."]
[null,"Endeligt individuelt effektiviseringskrav",{"$f":"IF(C42>0.05*C20,0.05*C20,IF(C42<0.01*C20,0,C42))","v":844361.03324999998},"kr. "]

{"sheet":"4. Historiske investeringer","index":3,"n_rows":9,"n_cols":4,"rows_kept":9,"cut":false,"hidden":false,"merged":[[3,1,3,2]]}
[{"$f":"'3. Driftsomkostninger'!A1","v":"Lolland Vand A/S"}]
[]
[]
[null,"Fane 4. Historiske investeringer "]
[]
[null,"Tillæg for historiske investeringer "]
[null,"Værdi af selskabets materielle anlægsaktiver pr. 1. januar 2010",522510347.74187863,"kr."]
[null,"Den årlige standardafskrivning på de materielle anlægsaktiver iht. POLKA",13221420.617611324,"kr."]
[null,"Tillæg i alt i 2015",{"$f":"C8","v":13221420.617611324},"kr."]

{"sheet":"5. Gennemførte investeringer","index":4,"n_rows":131,"n_cols":7,"rows_kept":131,"cut":false,"hidden":false,"merged":[[3,1,3,5],[6,5,6,6]]}
[{"$f":"'4. Historiske investeringer'!A1","v":"Lolland Vand A/S"}]
[]
[]
[null,"Fane 5. Gennemførte investeringer i 2010 - 2013 "]
[]
[null,"Tillæg for gennemførte investeringer i 2013"]
[null," Beskrivelse af investeringen   ","Årstal ","Std. levetid (år)   "," Anskaffelses-pris (kr.)","Afskrivning "]
[null,"Ledningsnet = Ø50 mm",2013,75,630909,{"$f":"E8/D8","v":8412.1200000000008},"kr."]
[null,"Ø 50mm < Ledningsnet = Ø110 mm",2013,75,1025238,13669.84,"kr."]
[null,"Ø110 mm < Ledningsnet = Ø 250 mm",2013,75,927378,12365.04,"kr."]
[null,"Stik på ledningsnet, Konstruktioner",2013,75,753656,10048.746666666666,"kr."]
[null,"Stik på ledningsnet, Mek./EL",2013,75,753656,10048.746666666666,"kr."]
[null,"Ventiler på ledningsnet = Ø50 mm",2013,75,1028463,{"$f":"E13/D13","v":13712.84},"kr."]
[null,"Ventiler på Ø 50mm < Ledningsnet = Ø110 mm",2013,75,60735,809.8,"kr."]
[null,"Ventiler på Ø110 mm < Ledningsnet = Ø 250 mm",2013,75,98006,1306.7466666666667,"kr."]
[null,"Ledningsnet = Ø50 mm",2013,75,273630,3648.4,"kr."]
[null,"Ø 50mm < Ledningsnet = Ø110 mm",2013,75,662647,8835.2933333333331,"kr."]
[null,"Ø110 mm < Ledningsnet = Ø 250 mm",2013,75,240377,3205.0266666666666,"kr."]
[null,"Stik på ledningsnet, Konstruktioner",2013,75,455429,6072.3866666666663,"kr."]
[null,"Stik på ledningsnet, Mek./EL",2013,75,455429,6072.3866666666663,"kr."]
[null,"Ventiler på ledningsnet = Ø50 mm",2013,75,605692,8075.8933333333334,"kr."]
[null,"Ventiler på Ø 50mm < Ledningsnet = Ø110 mm",2013,75,61170,815.6,"kr."]
[null,"Ventiler på Ø110 mm < Ledningsnet = Ø 250 mm",2013,75,14806,197.41333333333333,"kr."]
[null,"Ø110 mm < Ledningsnet = Ø 250 mm",2013,75,1371407,18285.426666666666,"kr."]
[null,"Ø 250 mm < Ledningsnet = Ø 500mm",2013,75,824,10.986666666666666,"kr."]
[null,"SRO-brønd/kvarterbrønd/sektionsbrønd, Konstruktioner",2013,50,40126,802.52,"kr."]
[null,"SRO-brønd/kvarterbrønd/sektionsbrønd, Mek./EL",2013,15,45858,3057.2,"kr."]
[null,"SRO-brønd/kvarterbrønd/sektionsbrønd, SRO",2013,10,28662,2866.2,"kr."]
[null,"Ledningsnet = Ø50 mm",2013,75,151174,2015.6533333333334,"kr."]
[null,"Ø 50mm < Ledningsnet = Ø110 mm",2013,75,782484,10433.120000000001,"kr."]
[null,"Stik på ledningsnet, Konstruktioner",2013,75,111832,1491.0933333333332,"kr."]
[null,"Stik på ledningsnet, Mek./EL",2013,75,111832,1491.0933333333332,"kr."]
[null,"Ventiler på ledningsnet = Ø50 mm",2013,75,183119,2441.5866666666666,"kr."]
[null,"Ventiler på Ø 50mm < Ledningsnet = Ø110 mm",2013,75,12510,166.8,"kr."]
[null,"Ledningsnet = Ø50 mm",2013,75,42870,571.6,"kr."]
[null,"Ø 50mm < Ledningsnet = Ø110 mm",2013,75,28164,375.52,"kr."]
[null,"Stik på ledningsnet, Konstruktioner",2013,75,104452,1392.6933333333334,"kr."]
[null,"Stik på ledningsnet, Mek./EL",2013,75,104452,1392.6933333333334,"kr."]
[null,"Ventiler på ledningsnet = Ø50 mm",2013,75,134154,1788.72,"kr."]
[null,"Ventiler på Ø 50mm < Ledningsnet = Ø110 mm",2013,75,9738,129.84,"kr."]
[null,"Ø 50mm < Ledningsnet = Ø110 mm",2013,75,16408,218.77333333333334,"kr."]
[null,"Ventiler på ledningsnet = Ø50 mm",2013,75,150897,2011.96,"kr."]
[null,"Ventiler på Ø 50mm < Ledningsnet = Ø110 mm",2013,75,87626,1168.3466666666666,"kr."]
[null,"Ledningsnet = Ø50 mm",2013,75,20008,266.77333333333331,"kr."]
[null,"Ø 50mm < Ledningsnet = Ø110 mm",2013,75,4024,53.653333333333336,"kr."]
[null,"Stik på ledningsnet, Konstruktioner",2013,75,19434,259.12,"kr."]
[null,"Stik på ledningsnet, Mek./EL",2013,75,19434,259.12,"kr."]
[null,"Ventiler på ledningsnet = Ø50 mm",2013,75,31822,424.29333333333335,"kr."]
[null,"Ø 50mm < Ledningsnet = Ø110 mm",2013,75,456765,6090.2,"kr."]
[null,"Stik på ledningsnet, Konstruktioner",2013,75,137839,1837.8533333333332,"kr."]
[null,"Stik på ledningsnet, Mek./EL",2013,75,137839,1837.8533333333332,"kr."]
[null,"Ventiler på ledningsnet = Ø50 mm",2013,75,181132,2415.0933333333332,"kr."]
[null,"Ventiler på Ø 50mm < Ledningsnet = Ø110 mm",2013,75,48546,647.28,"kr."]
[null,"Køretøjer, små lastvogne (< 3.500 kg.)",2013,5,606374,121274.8,"kr."]
[null,"Arbejdsplads",2013,5,9932,1986.4,"kr."]
[null,"Arbejdsplads",2013,5,81885,16377,"kr."]
[null,"Sikring, avanceret (hegne, porte og overvågningssystemer), SRO",2013,10,105460,10546,"kr."]
[null,"Lager",2013,75,1635893,21811.906666666666,"kr."]
[null,"Afregningsmålere, mekaniske",2013,8,2303413,287926.625,"kr."]
[null,"Ø 50mm < Ledningsnet = Ø110 mm",2013,75,154903,2065.3733333333334,"kr."]
[null,"Boring (inkl. etablering, forerør, filter og prøvepumpning)",2013,30,1233586,41119.533333333333,"kr."]
[null,"Ø110 mm < Ledningsnet = Ø 250 mm",2013,75,151165,2015.5333333333333,"kr."]
[null,"SRO anlæg",2013,10,431608,43160.800000000003,"kr."]
[null,"Ledningsnet = Ø50 mm",2013,75,86982,1159.76,"kr."]
[null,"Ø 50mm < Ledningsnet = Ø110 mm",2013,75,56785,757.13333333333333,"kr."]
[null,"Ø110 mm < Ledningsnet = Ø 250 mm",2013,75,475371,6338.28,"kr."]
[null,"Stik på ledningsnet, Konstruktioner",2013,75,116817,1557.56,"kr."]
[null,"Stik på ledningsnet, Mek./EL",2013,75,116817,1557.56,"kr."]
[null,"Ventiler på ledningsnet = Ø50 mm",2013,75,129522,1726.96,"kr."]
[null,"Ventiler på Ø 50mm < Ledningsnet = Ø110 mm",2013,75,23143,308.57333333333332,"kr."]
[null,"Ventiler på Ø110 mm < Ledningsnet = Ø 250 mm",2013,75,140042,1867.2266666666667,"kr."]
[null,"Ø 50mm < Ledningsnet = Ø110 mm",2013,75,86659,1155.4533333333334,"kr."]
[null,"Ø110 mm < Ledningsnet = Ø 250 mm",2013,75,386808,5157.4399999999996,"kr."]
[null,"Stik på ledningsnet, Konstruktioner",2013,75,31632,421.76,"kr."]
[null,"Stik på ledningsnet, Mek./EL",2013,75,31632,421.76,"kr."]
[null,"Ventiler på ledningsnet = Ø50 mm",2013,75,31077,414.36,"kr."]
[null,"Ventiler på Ø 50mm < Ledningsnet = Ø110 mm",2013,75,156406,2085.4133333333334,"kr."]
[null,"Ventiler på Ø110 mm < Ledningsnet = Ø 250 mm",2013,75,465943,6212.5733333333337,"kr."]
[null,"SRO-brønd/kvarterbrønd/sektionsbrønd, Konstruktioner",2013,50,950713,19014.259999999998,"kr."]
[null,"SRO-brønd/kvarterbrønd/sektionsbrønd, Mek./EL",2013,15,1086522,72434.8,"kr."]
[null,"SRO-brønd/kvarterbrønd/sektionsbrønd, SRO",2013,10,679083,67908.3,"kr."]
[null,"Ledningsnet = Ø50 mm",2013,75,8143,108.57333333333334,"kr."]
[null,"Ø 50mm < Ledningsnet = Ø110 mm",2013,75,78838,1051.1733333333334,"kr."]
[null,"Stik på ledningsnet, Konstruktioner",2013,75,16023,213.64,"kr."]
[null,"Stik på ledningsnet, Mek./EL",2013,75,16023,213.64,"kr."]
[null,"Ventiler på ledningsnet = Ø50 mm",2013,75,21866,291.54666666666668,"kr."]
[null,"Ledningsnet = Ø50 mm",2013,75,83108,{"$f":"E87/D87","v":1108.1066666666666},"kr."]
[null,"Ø 50mm < Ledningsnet = Ø110 mm",2013,75,280590,3741.2,"kr."]
[null,"Stik på ledningsnet, Konstruktioner",2013,75,104504,1393.3866666666668,"kr."]
[null,"Stik på ledningsnet, Mek./EL",2013,75,104504,1393.3866666666668,"kr."]
[null,"Ventiler på ledningsnet = Ø50 mm",2013,75,126764,1690.1866666666667,"kr."]
[null,"Ventiler på Ø 50mm < Ledningsnet = Ø110 mm",2013,75,18403,245.37333333333333,"kr."]
[null,"Ledningsnet = Ø50 mm",2013,75,229273,3056.9733333333334,"kr."]
[null,"Ø 50mm < Ledningsnet = Ø110 mm",2013,75,514346,6857.9466666666667,"kr."]
[null,"Ø110 mm < Ledningsnet = Ø 250 mm",2013,75,13952,186.02666666666667,"kr."]
[null,"Stik på ledningsnet, Konstruktioner",2013,75,185449,2472.6533333333332,"kr."]
[null,"Stik på ledningsnet, Mek./EL",2013,75,185449,2472.6533333333332,"kr."]
[null,"Ventiler på ledningsnet = Ø50 mm",2013,75,253069,3374.2533333333336,"kr."]
[null,"Ventiler på Ø 50mm < Ledningsnet = Ø110 mm",2013,75,18370,244.93333333333334,"kr."]
[null,"Ledningsnet = Ø50 mm",2013,75,200661,2675.48,"kr."]
[null,"Ø 50mm < Ledningsnet = Ø110 mm",2013,75,305224,4069.6533333333332,"kr."]
[null,"Ø110 mm < Ledningsnet = Ø 250 mm",2013,75,67625,901.66666666666663,"kr."]
[null,"Stik på ledningsnet, Konstruktioner",2013,75,219955,2932.7333333333331,"kr."]
[null,"Stik på ledningsnet, Mek./EL",2013,75,219955,2932.7333333333331,"kr."]
[null,"Ventiler på ledningsnet = Ø50 mm",2013,75,325462,4339.4933333333329,"kr."]
[null,"Ventiler på Ø 50mm < Ledningsnet = Ø110 mm",2013,75,75599,1007.9866666666667,"kr."]
[null,"Ventiler på Ø110 mm < Ledningsnet = Ø 250 mm",2013,75,121991,1626.5466666666666,"kr."]
[null,"Ventiler på Ø 250 mm < Ledningsnet = Ø 500mm",2013,75,219722,2929.6266666666666,"kr."]
[null,"Ledningsnet = Ø50 mm",2013,75,92872,1238.2933333333333,"kr."]
[null,"Ø 50mm < Ledningsnet = Ø110 mm",2013,75,54687,729.16,"kr."]
[null,"Stik på ledningsnet, Konstruktioner",2013,75,156369,2084.92,"kr."]
[null,"Stik på ledningsnet, Mek./EL",2013,75,156369,2084.92,"kr."]
[null,"Ventiler på ledningsnet = Ø50 mm",2013,75,613932,8185.76,"kr."]
[null,"Ventiler på Ø 50mm < Ledningsnet = Ø110 mm",2013,75,17391,231.88,"kr."]
[null,"Ledningsnet = Ø50 mm",2013,75,26689,355.85333333333335,"kr."]
[null,"Ø 50mm < Ledningsnet = Ø110 mm",2013,75,29389,391.85333333333335,"kr."]
[null,"Stik på ledningsnet, Konstruktioner",2013,75,41666,555.54666666666662,"kr."]
[null,"Stik på ledningsnet, Mek./EL",2013,75,41666,555.54666666666662,"kr."]
[null,"Ventiler på ledningsnet = Ø50 mm",2013,75,51689,689.18666666666661,"kr."]
[null,"Ventiler på Ø 50mm < Ledningsnet = Ø110 mm",2013,75,6003,80.040000000000006,"kr."]
[null,"Ledningsnet = Ø50 mm",2013,75,34762,463.49333333333334,"kr."]
[null,"Ø 50mm < Ledningsnet = Ø110 mm",2013,75,35568,474.24,"kr."]
[null,"Ø110 mm < Ledningsnet = Ø 250 mm",2013,75,1157579,15434.386666666667,"kr."]
[null,"Stik på ledningsnet, Konstruktioner",2013,75,52822,704.29333333333329,"kr."]
[null,"Stik på ledningsnet, Mek./EL",2013,75,52822,704.29333333333329,"kr."]
[null,"Ventiler på ledningsnet = Ø50 mm",2013,75,54061,720.81333333333339,"kr."]
[null,"Ventiler på Ø 50mm < Ledningsnet = Ø110 mm",2013,75,48835,651.13333333333333,"kr."]
[null,"Ventiler på Ø110 mm < Ledningsnet = Ø 250 mm",2013,75,50659,675.45333333333338,"kr."]
[null,"Tillæg for 2013 ",null,null,null,{"$f":"SUM(F8:F128)","v":1002825.1316666669},"kr."]
[null,"Tillæg for 2010 - 2012",null,null,null,3450590.8266666671,"kr."]
[null,"Samlet tillæg for gennemførte investeringer",null,null,null,{"$f":"F129+F130","v":4453415.958333334},"kr."]

{"sheet":"6. Korrektion investeringer","index":5,"n_rows":10,"n_cols":4,"rows_kept":10,"cut":false,"hidden":false,"merged":[[3,1,3,3]]}
[{"$f":"'5. Gennemførte investeringer'!A1","v":"Lolland Vand A/S"}]
[]
[]
[null,"Fane 6. Korrektion af tillæg for planlagte investeringer"]
[]
[null,"Korrektion af tillæg for planlagte investeringer vedr. 2013"]
[null,"Tillæg for planlagte investeringer i 2013 i prisloft 2013",756667,"kr."]
[null,"Tillæg for planlagte investeringer i 2013 i prisloft 2014",952333,"kr."]
[null,"Selskabets faktiske afskrivninger på gennemførte investeringer i 2013",{"$f":"'5. Gennemførte investeringer'!F129","v":1002825.1316666669},"kr."]
[null,"Korrektion af tillæg for planlagte investeringer vedr. 2013",{"$f":"C9-C7+C9-C8","v":296650.26333333389},"kr."]

{"sheet":"7. Planlagte investeringer","index":6,"n_rows":51,"n_cols":7,"rows_kept":51,"cut":false,"hidden":false,"merged":[[6,5,6,6],[3,1,3,6]]}
[{"$f":"'6. Korrektion investeringer'!A1","v":"Lolland Vand A/S"}]
[]
[]
[null,"Fane 7. Planlagte investeringer "]
[]
[null,"Tillæg for planlagte investeringer i 2014 og 2015"]
[null,"Beskrivelse af investeringen   ","Årstal ","Std. levetid (år)   ","Anskaffelses-pris (kr.)   ","Afskrivning"]
[null,"Stik på ledningsnet, Konstruktioner",2014,75,100000,{"$f":"E8/D8","v":1333.3333333333333},"kr."]
[null,"Ventiler på Ø 50mm < Ledningsnet = Ø110 mm",2014,75,440000,{"$f":"E9/D9","v":5866.666666666667},"kr."]
[null,"Afregningsmålere, mekaniske",2014,8,2000000,{"$f":"E10/D10","v":250000},"kr."]
[null,"Etageareal vandbehandlingsbygning",2014,75,250000,3333.3333333333335,"kr."]
[null,"Ø 50mm < Ledningsnet = Ø110 mm",2014,75,875000,11666.666666666666,"kr."]
[null,"Ø 50mm < Ledningsnet = Ø110 mm",2014,75,100000,1333.3333333333333,"kr."]
[null,"Ø 50mm < Ledningsnet = Ø110 mm",2014,75,230000,3066.6666666666665,"kr."]
[null,"Ø 50mm < Ledningsnet = Ø110 mm",2014,75,3425000,45666.666666666664,"kr."]
[null,"Ø 50mm < Ledningsnet = Ø110 mm",2014,75,990000,13200,"kr."]
[null,"SRO-brønd/kvarterbrønd/sektionsbrønd, SRO",2014,10,75000,7500,"kr."]
[null,"Afregningsmålere, elektroniske = Ø 110mm (Qn 10)",2014,10,3000000,300000,"kr."]
[null,"Rentvandsbeholder insitu støbt",2014,50,300000,6000,"kr."]
[null,"Sikring, mindre avanceret (hegne, porte), SRO",2014,10,350000,35000,"kr."]
[null,"Ø 50mm < Ledningsnet = Ø110 mm",2014,75,2000000,26666.666666666668,"kr."]
[null,"Ø 50mm < Ledningsnet = Ø110 mm",2014,75,200000,2666.6666666666665,"kr."]
[null,"Ø110 mm < Ledningsnet = Ø 250 mm",2014,75,1000000,13333.333333333334,"kr."]
[null,"Ø 50mm < Ledningsnet = Ø110 mm",2014,75,60000,800,"kr."]
[null,"Ø 50mm < Ledningsnet = Ø110 mm",2014,75,1350000,18000,"kr."]
[null,"SRO-brønd/kvarterbrønd/sektionsbrønd, Konstruktioner",2014,50,40000,800,"kr."]
[null,"SRO-brønd/kvarterbrønd/sektionsbrønd, Konstruktioner",2014,50,40000,800,"kr."]
[null,"SRO-brønd/kvarterbrønd/sektionsbrønd, Konstruktioner",2014,50,800000,16000,"kr."]
[null,"SRO-brønd/kvarterbrønd/sektionsbrønd, Mek./EL",2014,15,200000,13333.333333333334,"kr."]
[null,"SRO-brønd/kvarterbrønd/sektionsbrønd, SRO",2014,10,30000,3000,"kr."]
[null,"Boring (inkl. etablering, forerør, filter og prøvepumpning)",2014,30,900000,30000,"kr."]
[null,"Ø 50mm < Ledningsnet = Ø110 mm",2014,75,1370000,18266.666666666668,"kr."]
[null,"SRO-brønd/kvarterbrønd/sektionsbrønd, Konstruktioner",2014,50,300000,6000,"kr."]
[null,"Ø 50mm < Ledningsnet = Ø110 mm",2014,75,100000,1333.3333333333333,"kr."]
[null,"SRO anlæg",2014,10,300000,30000,"kr."]
[null,"Nødstrømsanlæg på vandværk",2014,25,500000,20000,"kr."]
[null,"Etageareal vandbehandlingsbygning",2014,75,150000,2000,"kr."]
[null,"Rentvandsbeholder element",2014,50,600000,12000,"kr."]
[null,"Ø 50mm < Ledningsnet = Ø110 mm",2014,75,400000,5333.333333333333,"kr."]
[null,"Stik på ledningsnet, Konstruktioner",2014,75,600000,8000,"kr."]
[null,"Ø 50mm < Ledningsnet = Ø110 mm",2014,75,1000000,13333.333333333334,"kr."]
[null,"Ø 50mm < Ledningsnet = Ø110 mm",2015,75,5218000,69573.333333333328,"kr."]
[null,"SRO-brønd/kvarterbrønd/sektionsbrønd, Konstruktioner",2015,50,770000,15400,"kr."]
[null,"SRO-brønd/kvarterbrønd/sektionsbrønd, Mek./EL",2015,15,100000,6666.666666666667,"kr."]
[null,"SRO-brønd/kvarterbrønd/sektionsbrønd, SRO",2015,10,32000,3200,"kr."]
[null,"Afregningsmålere, mekaniske",2015,8,2000000,250000,"kr."]
[null,"SRO anlæg",2015,10,500000,50000,"kr."]
[null,"Ventiler på Ø 50mm < Ledningsnet = Ø110 mm",2015,75,1000000,13333.333333333334,"kr."]
[null,"Tillæg for 2014",null,null,null,{"$f":"SUMIF(C8:C48,\"2014\",F8:F48)","v":925633.33333333349},"kr."]
[null,"Tillæg for 2015",null,null,null,{"$f":"SUMIF(C8:C48,\"2015\",F8:F48)","v":408173.33333333331},"kr."]
[null,"Tillæg i alt",null,null,null,{"$f":"F49+F50","v":1333806.6666666667},"kr."]

{"sheet":"8. 1-1 omkostninger","index":7,"n_rows":26,"n_cols":4,"rows_kept":26,"cut":false,"hidden":false,"merged":[[3,1,3,3],[16,1,16,3],[22,1,22,3]]}
[{"$f":"'7. Planlagte investeringer'!A1","v":"Lolland Vand A/S"}]
[]
[]
[null,"Fane 8. 1:1 omkostninger"]
[]
[null,"Tillæg for budgetterede 1:1 omkostninger i 2015"]
[null,"Betaling til Forsyningssekretariatet",33000,"kr."]
[null,"Ejendomsskatter",35000,"kr."]
[null,"Tillæg i alt ",{"$f":"SUM(C7:C8)","v":68000},"kr."]
[]
[]
[null,"Tillæg for afgift for ledningsført vand i 2015"]
[null,"Afgift for ledningsført vand (6,53 kr./m3)",10000000,"kr."]
[null,"Tillæg i alt ",{"$f":"SUM(C13:C13)","v":10000000},"kr."]
[]
[]
[null,"Tillæg for budgetterede nødvendige udgifter til revisorerklæringer samt ordinært medlemskab af DANVA og FVD i 2015"]
[null,"Betaling for ordinært medlemskab af DANVA/FVD",78000,"kr."]
[null,"Betaling for revisorerklæringer",25000,"kr."]
[null,"Tillæg i alt ",{"$f":"SUM(C18:C19)","v":103000},"kr."]
[]
[]
[null,"Korrektion af tillæg for faktiske 1:1 omkostninger (inkl. afgift for ledningsført vand, revisorerklæringer og ordinært medlemskab af DANVA/FVD) i 2013"]
[null,"Selskabets faktiske 1:1 omkostninger mv. i 2013, jf. reguleringsregnskabet",10402851,"kr."]
[null,"Tillæg for budgetterede 1:1 omkostninger mv. i prisloft 2013",11086258,"kr."]
[null,"Korrektion af tillæg for budgetterede 1:1 omkostninger mv. i 2013",{"$f":"C24-C25","v":-683407},"kr."]

{"sheet":"9. Miljø- og servicemål","index":8,"n_rows":15,"n_cols":4,"rows_kept":15,"cut":false,"hidden":false,"merged":[[3,1,3,3]]}
[{"$f":"'8. 1-1 omkostninger'!A1","v":"Lolland Vand A/S"}]
[]
[]
[null,"Fane 9. Driftsomkostninger til miljø- og servicemål "]
[]
[null,"Tillæg for budgetterede driftsomkostninger til miljø- og servicemål i 2015"]
[null,"SMS-tjeneste",55000,"kr."]
[null,"Tillæg i alt",{"$f":"SUM(C7:C7)","v":55000},"kr."]
[]
[]
[]
[null,"Korrektion af tillæg for faktiske driftsomkostninger til miljø- og servicemål i 2013"]
[null,"Selskabets faktiske driftsomkostninger til miljø- og servicemål i 2013, jf. reguleringsregnskabet",119991,"kr."]
[null,"Tillæg for budgetterede driftsomkostninger til miljø- og servicemål i prisloft 2013",94000,"kr."]
[null,"Korrektion af tillæg for budgetterede driftsomkostninger til miljø- og servicemål i 2013",{"$f":"C13-C14","v":25991},"kr."]

{"sheet":"10. Nettofinansielle poster","index":9,"n_rows":16,"n_cols":4,"rows_kept":16,"cut":false,"hidden":false,"merged":[[3,1,3,3]]}
[{"$f":"'2. Samlet prisloft'!A1","v":"Lolland Vand A/S"}]
[]
[]
[null,"Fane 10. Nettofinansielle poster"]
[]
[null,"Tillæg for budgetterede nettofinansielle poster i 2015"]
[null,"Budgetterede renteudgifter og gebyrer i 2015",2950000,"kr."]
[null,"Budgetterede renteindtægter i 2015",55000,"kr."]
[null,"Tillæg/fradrag i alt",{"$f":"C7-C8","v":2895000},"kr."]
[]
[]
[]
[null,"Korrektion af tillæg for faktiske nettofinansielle poster i 2013"]
[null,"Selskabets faktiske nettofinansielle poster i 2013, jf. reguleringsregnskabet",2766127,"kr."]
[null,"Tillæg for budgetterede nettofinansielle poster i prisloft 2013",2300000,"kr."]
[null,"Korrektion af tillæg for budgetterede nettofinansielle poster i 2013",{"$f":"C14-C15","v":466127},"kr."]

{"sheet":"11. Over- eller underdækning","index":10,"n_rows":11,"n_cols":4,"rows_kept":11,"cut":false,"hidden":false,"merged":[[3,1,3,3]]}
[{"$f":"'1. Forside'!A1","v":"Lolland Vand A/S"}]
[]
[]
[null,"Fane 11. Over- eller underdækning til og med 2010"]
[]
[null,"Tillæg/fradrag for over- eller underdækning til og med 2010"]
[null,"Opgjort over- eller underdækning per 31. december 2010",1437552,"kr."]
[null,"Heraf beløb indregnet i prislofterne for 2011 - 2014",-377819.25396825396,"kr."]
[null,"Endnu ikke indregnet over- eller underdækning",{"$f":"C7-C8","v":1815371.253968254},"kr."]
[null,"Resterende indregningsperiode (fastsat i prisloftet for 2012)",6,"år"]
[null,"Tillæg/fradrag i alt",{"$f":"IF(C7=0,0,C9/C10)","v":302561.87566137564},"kr."]

{"sheet":"12. Kontrol med indtægtsrammen","index":11,"n_rows":38,"n_cols":12,"rows_kept":38,"cut":false,"hidden":false,"merged":[[3,1,3,5],[30,1,30,4],[5,1,5,5]]}
[{"$f":"'11. Over- eller underdækning'!A1","v":"Lolland Vand A/S"}]
[]
[]
[null,"Fane 12. Korrektion for overholdelse af indtægtsrammen i prisloftet for 2013"]
[]
[null,"Samlet opgørelse vedrørende overholdelse af indtægtsrammen i prisloftet for 2013"]
[null,"Indtægtsramme i prisloftet for 2013",null,null,55465035.072646201,"kr."]
[null,"Ikke anvendt likviditet vedrørende investeringer i 2013"]
[null,"Tillæg for historiske investeringer ",14170405.320124416,"kr."]
[null,"Tillæg for gennemførte investeringer i 2011",2221903,"kr."]
[null,"Korrektion af tillæg for planlagte investeringer i 2011",1520312,"kr."]
[null,"Tillæg for planlagte investeringer i 2012 og 2013",1773097,"kr."]
[null,"Indtægter fra tilslutningsbidrag",41779,"kr."]
[null,"Indtægter fra salg af anlægsaktiver",92379,"kr."]
[null,"Erstatninger vedr. anlægsaktiver mv.",0,"kr."]
[null,"Ekstraordinær effektiviseringsgevinst anvendt til investeringer",5408451,"kr."]
[null,"Udgifter til investeringer",-35096679,"kr."]
[null,"Ikke anvendt likviditet vedr. investeringer i alt",{"$f":"SUM(C9:C17)","v":-9868352.6798755825},"kr.",{"$f":"IF(C18<0,0,-C18)","v":0},"kr."]
[null,"Ekstraordinære effektiviseringsgevinster anvendt til takstnedsættelse"]
[null,"Ekstraordinær effektiviseringsgevinst anvendt til takstnedsættelse",0,"kr.",{"$f":"-C20","v":0},"kr."]
[null,"Korrektion af ikke opkrævet tillæg fra 2011 i prisloft 2013"]
[null,"Korrektion af ikke opkrævet tillæg fra 2011 i prisloft 2013",0,"kr.",{"$f":"-C22","v":0},"kr."]
[null,"Indtægter fra primære aktiviteter mv."]
[null,"Indtægter fra kubikmetertakster, faste takster, særbidrag, målergebyrer samt andre takster og gebyrer",{"$f":"38823924+10236898","v":49060822},"kr."]
[null,"Andre indtægter i prisloftåret, som selskabet har opnået i forbindelse med eller som følge af selskabets primære aktiviteter",449182,"kr."]
[null,"Indtægter fra primære aktiviteter mv. i alt",{"$f":"SUM(C24:C25)","v":49510004},"kr.",{"$f":"-C26","v":-49510004},"kr."]
[null,"Tillæg/fradrag i prisloftet for 2015 i alt",null,null,{"$f":"E7+E18+E20+E22+E26","v":5955031.0726462007},"kr."]
[]
[]
[]
[null,"Oversigt over ekstraordinære effektiviseringsgevinster"]
[]
[null,null,2012,null,2013,null,2014,null,2015,null,2016]
[null,"Indhentet ekstraordinær effektiviseringsgevinst",5193144,"kr.",5962433,"kr.",null,"kr.",null,"kr.",null,"kr."]
[null,"Gevinst anvendt til investeringer",5193144,"kr.",5408451,"kr.",null,"kr.",null,"kr.",null,"kr."]
[null,"Gevinst anvendt til takstnedsættelse",0,"kr.",0,"kr.",null,"kr.",null,"kr.",null,"kr."]
[null,"Korrektion for  effektiviseringsgevinst der ikke er anvendt inden 4 år",0,"kr.",0,"kr.",null,"kr.",null,"kr.",{"$f":"IF(C38>SUM(E35:I36),C38-SUM(E35:I36),0)*-1","v":0},"kr."]
[null,"Resterende gevinst",{"$f":"C34-C35-C36","v":0},"kr.",{"$f":"C38+E34-E35-E36","v":553982},"kr.",{"$f":"E38+G34-G35-G36","v":553982},"kr.",{"$f":"G38+I34-I35-I36","v":553982},"kr.",{"$f":"I38+K34-K35-K36+K37","v":553982},"kr."]